bitfinex/quotes_SOLUSD_20240825
["timestamp","ask_amount","ask_price","bid_price","bid_amount"]
[1724549558764,95.543061,158.59,158.54,6.3075]
[1724549559086,101.848561,158.59,158.53,6.3079]
[1724549559296,101.848561,158.59,158.46,7.4549929]
[1724549559297,30.543061,158.56,158.46,7.4549929]
[1724549559460,65.0,158.59,158.46,7.4549929]
[1724549559461,20.0,158.59,158.47,30.543061]
[1724549559669,20.0,158.61,158.47,30.543061]
[1724549559983,20.0,158.61,158.5,59.56409651]
[1724549560174,45.0,158.6,158.56,6.3066]
[1724549560371,20.0,158.61,158.57,6.3063]
[1724549561085,20.0,158.61,158.5,59.56409651]
[1724549561086,30.543061,158.59,158.5,59.56409651]
[1724549561265,30.543061,158.56,158.5,59.56409651]
[1724549561468,20.0,158.55,158.5,59.56409651]
[1724549562196,30.543061,158.56,158.5,59.56409651]
[1724549562796,6.3084,158.52,158.5,59.56409651]
[1724549563394,65.0,158.51,158.5,59.56409651]
[1724549564265,30.543061,158.53,158.5,59.56409651]
[1724549564472,6.3076,158.54,158.5,59.56409651]
[1724549564692,26.5417405,158.53,158.5,59.56409651]
[1724549565808,6.3085,158.52,158.5,59.56409651]
[1724549565975,6.3101,158.48,158.46,0.8168929]
[1724549566296,75.543061,158.47,158.46,0.8168929]
[1724549566670,95.543061,158.47,158.46,0.8168929]
[1724549567399,6.312,158.43,158.3,22.0512]
[1724549567701,6.312,158.43,158.31,0.3168929]
[1724549568075,6.3124,158.42,158.31,0.3168929]
[1724549568273,30.543061,158.38,158.31,0.3168929]
[1724549568480,30.543061,158.35,158.31,0.3168929]
[1724549568868,30.543061,158.38,158.31,0.3168929]
[1724549569397,6.5681,158.45,158.31,0.3168929]
[1724549569599,20.0,158.44,158.31,0.3168929]
[1724549570395,26.3118,158.44,158.31,0.3168929]
[1724549570895,30.543061,158.42,158.31,0.3168929]
[1724549571097,30.543061,158.39,158.31,0.3168929]
[1724549571294,6.3153,158.35,158.31,0.3168929]
[1724549571797,30.543061,158.33,158.31,0.3168929]
[1724549572173,46.332061,158.34,158.15,0.8168929]
[1724549572401,30.543061,158.3,158.15,0.8168929]
[1724549572604,71.3178,158.29,158.21,6.3206]
[1724549572788,30.543061,158.3,158.15,0.8168929]
[1724549572990,32.15252728,158.37,158.26,6.3186]
[1724549572991,36.859261,158.33,158.26,6.3186]
[1724549573192,6.3153,158.35,158.19,30.543061]
[1724549573404,22.1262,158.42,158.22,30.543061]
[1724549573706,50.543061,158.42,158.18,1.26341295]
[1724549573874,30.543061,158.35,158.18,30.543061]
[1724549574211,6.3148,158.36,158.21,30.543061]
[1724549574413,30.543061,158.39,158.22,6.6538]
[1724549574630,30.543061,158.39,158.24,30.543061]
[1724549574908,6.315,158.36,158.24,30.543061]
[1724549575102,30.543061,158.39,158.18,0.1862122]
[1724549575283,36.858061,158.36,158.21,30.543061]
[1724549575478,6.314,158.38,158.21,30.543061]
[1724549575682,45.0,158.37,158.24,30.543061]
[1724549575892,20.0,158.36,158.24,30.543061]
[1724549576091,30.543061,158.39,158.24,30.543061]
[1724549576414,6.54619918,158.4,158.18,0.1862122]
[1724549576595,30.543061,158.35,158.2,30.543061]
[1724549576795,30.543061,158.39,158.2,30.543061]
[1724549576998,30.543061,158.3,158.18,0.1862122]
[1724549577198,36.860461,158.3,158.18,0.1862122]
[1724549577392,15.8166,158.35,158.18,0.1862122]
[1724549577393,30.543061,158.33,158.18,0.1862122]
[1724549577582,36.859261,158.33,158.18,0.1862122]
[1724549577785,71.3163,158.32,158.18,0.1862122]
[1724549578012,20.0,158.32,158.18,0.1862122]
[1724549578194,20.0,158.32,158.19,30.543061]
[1724549579088,20.0,158.34,158.19,30.543061]
[1724549579292,20.0,158.34,158.2,51.6538]
[1724549579588,6.3156,158.34,158.2,51.6538]
[1724549579792,50.543061,158.33,158.2,6.6538]
[1724549580216,30.543061,158.28,158.18,0.1862122]
[1724549580509,36.861061,158.28,158.18,0.1862122]
[1724549580691,36.859761,158.31,158.18,0.1862122]
[1724549580894,30.543061,158.31,158.18,0.1862122]
[1724549581089,20.0,158.3,158.18,0.1862122]
[1724549581311,30.543061,158.28,158.18,0.1862122]
[1724549581496,6.3454,158.26,158.18,0.1862122]
[1724549581808,30.543061,158.21,158.18,0.1862122]
[1724549582006,30.543061,158.24,158.18,0.1862122]
[1724549582210,20.0,158.23,158.12,21.8174]
[1724549582386,30.543061,158.27,158.21,6.3206]
[1724549582590,30.543061,158.27,158.12,21.8174]
[1724549582591,20.0,158.26,158.12,21.8174]
[1724549582985,6.3166,158.32,158.17,30.543061]
[1724549583187,30.543061,158.33,158.17,30.543061]
[1724549583387,30.543061,158.33,158.24,6.3191]
[1724549583388,6.3167,158.31,158.24,6.3191]
[1724549584124,30.543061,158.33,158.17,30.543061]
[1724549584521,30.543061,158.36,158.2,30.543061]
[1724549584719,6.3152,158.35,158.2,30.543061]
[1724549585030,30.543061,158.3,158.12,21.8174]
[1724549585193,6.3157,158.34,158.15,30.543061]
[1724549585391,30.543061,158.3,158.15,30.543061]
[1724549585808,30.543061,158.3,158.13,20.0]
[1724549586023,6.3175,158.29,158.13,20.0]
[1724549586322,30.543061,158.3,158.13,20.0]
[1724549586490,30.543061,158.24,158.07,6.6538]
[1724549586699,20.0,158.23,158.09,30.543061]
[1724549587224,30.543061,158.27,158.09,30.543061]
[1724549587225,6.3169,158.31,158.15,30.543061]
[1724549587427,6.316,158.33,158.18,30.543061]
[1724549587836,6.3154,158.35,158.21,30.543061]
[1724549588129,30.543061,158.37,158.21,30.543061]
[1724549588323,30.543061,158.37,158.27,6.3179]
[1724549588501,6.55634584,158.36,158.27,6.3179]
[1724549588901,6.55634584,158.36,158.21,30.543061]
[1724549589130,47.3349,158.45,158.19,45.0]
[1724549589131,30.543061,158.41,158.24,30.543061]
[1724549589306,30.543061,158.38,158.22,35.1636]
[1724549589623,30.543061,158.32,158.22,15.1636]
[1724549592510,20.0,158.31,158.22,15.1636]
[1724549593323,26.3168,158.31,158.22,15.1636]
[1724549593517,20.0,158.31,158.22,15.1636]
[1724549593713,26.317,158.31,158.22,15.1636]
[1724549595703,20.0,158.31,158.22,15.1636]
[1724549596235,20.0,158.32,158.22,15.1636]
[1724549597026,30.543061,158.32,158.22,15.1636]
[1724549597222,20.0,158.31,158.22,15.1636]
[1724549597424,6.3171,158.3,158.22,15.1636]
[1724549597603,20.0,158.29,158.22,15.1636]
[1724549599930,26.3175,158.29,158.22,15.1636]
[1724549600214,26.3175,158.29,158.17,6.6538]
[1724549600215,6.3187,158.27,158.17,22.9646]
[1724549600420,50.543061,158.29,158.17,22.9646]
[1724549601249,45.0,158.28,158.17,22.9646]
[1724549601708,20.0,158.27,158.17,22.9646]
[1724549602551,6.3192,158.25,158.17,22.9646]
[1724549603610,20.0,158.27,158.17,22.9646]
[1724549603839,26.3185,158.27,158.17,22.9646]
[1724549604531,6.318,158.28,158.17,22.9646]
[1724549605234,52.89082118,158.32,158.19,30.543061]
[1724549605235,6.3174,158.3,158.19,30.543061]
[1724549605922,37.09982118,158.32,158.17,22.9646]
[1724549606141,6.3187,158.26,158.17,22.9646]
[1724549606340,6.3182,158.28,158.17,22.9646]
[1724549607215,6.55676018,158.32,158.19,30.543061]
[1724549607427,6.3167,158.31,158.2,1.26383696]
[1724549607631,6.3163,158.32,158.19,30.543061]
[1724549607918,6.3169,158.31,158.19,30.543061]
[1724549608329,6.55467378,158.35,158.22,30.543061]
[1724549608535,6.55467378,158.35,158.23,15.5257]
[1724549608940,6.3155,158.34,158.23,15.5257]
[1724549609336,6.55467378,158.35,158.23,15.5257]
[1724549609538,15.7825,158.41,158.28,30.543061]
[1724549609736,6.3139,158.38,158.28,30.543061]
[1724549610219,6.55274345,158.4,158.28,30.543061]
[1724549610420,6.3115,158.44,158.31,30.543061]
[1724549610617,6.3116,158.44,158.31,30.543061]
[1724549610854,36.900461,158.48,158.31,30.543061]
[1724549610855,6.311,158.46,158.31,30.543061]
[1724549611017,6.55288986,158.47,158.31,30.543061]
[1724549611221,6.55288986,158.47,158.34,30.543061]
[1724549611420,6.55288986,158.47,158.35,15.5257]
[1724549611865,6.3123,158.42,158.35,15.5257]
[1724549612020,6.3118,158.44,158.35,15.5257]
[1724549612219,30.543061,158.45,158.35,15.5257]
[1724549612441,6.3119,158.43,158.35,15.5257]
[1724549612842,6.3115,158.45,158.35,15.5257]
[1724549613183,20.0,158.44,158.35,15.5257]
[1724549613342,6.55288986,158.47,158.36,1.26284322]
[1724549613530,6.3107,158.46,158.35,15.5257]
[1724549615128,20.0,158.46,158.35,15.5257]
[1724549615531,6.55288986,158.47,158.37,30.543061]
[1724549615768,6.3574,158.52,158.37,30.543061]
[1724549615931,6.3093,158.5,158.37,30.543061]
[1724549616131,6.3093,158.5,158.38,6.0084]
[1724549616461,12.86068559,158.51,158.4,30.543061]
[1724549616640,30.543061,158.54,158.4,30.543061]
[1724549616851,6.55519509,158.54,158.4,30.543061]
[1724549617046,6.55519509,158.54,158.43,30.543061]
[1724549617245,6.55519509,158.54,158.44,15.4982]
[1724549617453,6.3072,158.55,158.44,15.4982]
[1724549617454,6.3062,158.58,158.44,15.4982]
[1724549617663,6.3062,158.58,158.46,30.543061]
[1724549618034,6.3062,158.58,158.47,6.0084]
[1724549619047,6.3085,158.52,158.47,6.0084]
[1724549619251,6.3078,158.54,158.47,6.0084]
[1724549619974,30.543061,158.55,158.44,15.4982]
[1724549620264,6.3088,158.51,158.44,15.4982]
[1724549620468,30.543061,158.52,158.42,6.0084]
[1724549620639,6.3103,158.47,158.42,6.0084]
[1724549620966,65.0,158.51,158.39,15.4982]
[1724549620967,6.3117,158.44,158.39,15.4982]
[1724549621137,6.3112,158.45,158.39,15.4982]
[1724549621866,6.3106,158.47,158.39,15.4982]
[1724549622058,20.0,158.46,158.39,15.4982]
[1724549622445,6.3093,158.5,158.39,15.4982]
[1724549622648,20.0,158.49,158.39,15.4982]
[1724549623239,20.0,158.51,158.41,30.543061]
[1724549623434,6.29165557,158.57,158.41,30.543061]
[1724549623660,6.3084,158.52,158.41,30.543061]
[1724549624246,6.3078,158.54,158.41,30.543061]
[1724549624454,6.29165557,158.57,158.41,30.543061]
[1724549624653,20.0,158.54,158.41,30.543061]
[1724549625070,6.29165557,158.57,158.41,30.543061]
[1724549625263,6.1182,158.58,158.45,6.0084]
[1724549625577,6.3064,158.57,158.45,6.0084]
[1724549625778,6.3067,158.56,158.45,6.0084]
[1724549626276,12.4245,158.58,158.45,6.0084]
[1724549626477,6.3063,158.58,158.45,6.0084]
[1724549627374,6.3064,158.57,158.45,6.0084]
[1724549628156,20.0,158.56,158.45,6.0084]
[1724549628869,26.3068,158.56,158.45,6.0084]
[1724549629279,50.543061,158.56,158.45,6.0084]
[1724549629577,45.0,158.55,158.45,6.0084]
[1724549629887,6.3079,158.53,158.45,6.0084]
[1724549630190,26.3076,158.54,158.45,6.0084]
[1724549630382,20.0,158.54,158.45,6.0084]
[1724549630559,6.3069,158.56,158.45,6.0084]
[1724549630764,20.0,158.55,158.45,6.0084]
[1724549631162,6.5458357,158.57,158.45,6.0084]
[1724549631163,6.3076,158.54,158.45,6.0084]
[1724549631592,6.3071,158.55,158.45,6.0084]
[1724549631886,26.3076,158.54,158.45,6.0084]
[1724549632198,50.543061,158.54,158.45,6.0084]
[1724549632373,45.0,158.53,158.45,6.0084]
[1724549632692,6.3087,158.51,158.45,6.0084]
[1724549632899,20.0,158.5,158.45,6.0084]
[1724549633083,20.0,158.5,158.4,6.047]
[1724549633588,26.3094,158.5,158.4,6.047]
[1724549634088,20.0,158.5,158.4,6.047]
[1724549634258,20.0,158.52,158.4,6.047]
[1724549635179,6.3089,158.51,158.4,6.047]
[1724549635362,20.0,158.5,158.4,6.047]
[1724549635567,26.3083,158.52,158.4,6.047]
[1724549635761,26.3083,158.52,158.41,30.543061]
[1724549636181,6.3091,158.51,158.41,30.543061]
[1724549636485,26.3092,158.5,158.4,6.047]
[1724549636788,20.0,158.49,158.4,6.047]
[1724549637161,6.31,158.48,158.4,6.047]
[1724549637363,20.0,158.49,158.41,31.80544197]
[1724549637597,20.0,158.52,158.41,30.543061]
[1724549637762,26.3084,158.52,158.41,30.543061]
[1724549637963,6.3088,158.51,158.41,30.543061]
[1724549638269,20.0,158.5,158.41,30.543061]
[1724549641361,6.3092,158.5,158.41,30.543061]
[1724549641875,20.0,158.51,158.4,6.047]
[1724549642091,37.08334704,158.53,158.4,6.047]
[1724549642092,30.543061,158.5,158.4,6.047]
[1724549642270,30.543061,158.47,158.39,15.4982]
[1724549642467,30.543061,158.47,158.36,6.047]
[1724549642667,6.3127,158.42,158.36,6.047]
[1724549642980,6.314,158.38,158.34,16.2871]
[1724549643179,6.313,158.41,158.34,16.2871]
[1724549643387,26.3131,158.4,158.34,16.2871]
[1724549643892,6.3136,158.39,158.34,16.2871]
[1724549644194,20.0,158.4,158.34,16.2871]
[1724549644604,26.3131,158.4,158.34,16.2871]
[1724549645988,6.3137,158.39,158.32,6.047]
[1724549648096,6.3147,158.36,158.29,16.2871]
[1724549648295,20.0,158.35,158.23,6.047]
[1724549648472,6.3163,158.32,158.23,6.047]
[1724549648799,26.317,158.31,158.23,6.047]
[1724549648968,6.317,158.31,158.23,6.047]
[1724549649501,6.3172,158.3,158.23,6.047]
[1724549649683,20.0,158.29,158.23,6.047]
[1724549651482,20.0,158.29,158.22,16.2871]
[1724549651677,6.3179,158.28,158.22,16.2871]
[1724549651912,20.0,158.29,158.22,16.2871]
[1724549652368,26.3175,158.29,158.22,16.2871]
[1724549654575,20.0,158.29,158.22,16.2871]
[1724549654795,30.543061,158.35,158.22,16.2871]
[1724549655504,6.3163,158.32,158.22,16.2871]
[1724549656170,20.0,158.31,158.22,16.2871]
[1724549656371,30.543061,158.32,158.22,16.2871]
[1724549656596,20.0,158.31,158.22,16.2871]
[1724549656910,20.0,158.31,158.23,1.26391868]
[1724549657074,22.7454,158.37,158.22,16.2871]
[1724549657075,6.3159,158.33,158.24,30.543061]
[1724549657275,20.0,158.32,158.24,30.543061]
[1724549657474,20.0,158.32,158.22,16.2871]
[1724549658289,20.0,158.34,158.22,16.2871]
[1724549658473,6.3164,158.32,158.22,16.2871]
[1724549658671,20.0,158.31,158.22,16.2871]
[1724549659305,26.3168,158.31,158.22,16.2871]
[1724549659506,6.3175,158.29,158.22,16.2871]
[1724549659721,20.0,158.31,158.22,16.2871]
[1724549659722,20.0,158.28,158.22,16.2871]
[1724549659880,20.0,158.31,158.19,6.047]
[1724549659881,30.543061,158.29,158.19,6.047]
[1724549660088,20.0,158.28,158.19,6.047]
[1724549660503,6.3187,158.26,158.19,6.047]
[1724549660701,20.0,158.25,158.19,6.047]
[1724549660899,20.0,158.25,158.17,16.1455384]
[1724549661100,6.3196,158.24,158.17,16.1455384]
[1724549661486,6.3204,158.22,158.17,16.1455384]
[1724549661811,20.0,158.21,158.17,0.5389384]
[1724549662392,20.0,158.22,158.17,0.5389384]
[1724549662604,50.543061,158.27,158.17,0.5389384]
[1724549662802,45.0,158.26,158.17,0.5389384]
[1724549662981,20.0,158.25,158.17,0.5389384]
[1724549663186,6.3207,158.21,158.17,0.5389384]
[1724549663898,6.3203,158.22,158.17,0.5389384]
[1724549664103,20.0,158.21,158.17,0.5389384]
[1724549664304,6.3198,158.24,158.17,0.5389384]
[1724549664513,6.3199,158.23,158.17,0.5389384]
[1724549664716,20.0,158.22,158.17,0.5389384]
[1724549664921,6.3216,158.19,158.17,0.5389384]
[1724549665286,6.321,158.21,158.17,0.5389384]
[1724549665510,6.3215,158.19,158.17,0.5389384]
[1724549665903,20.0,158.2,158.17,0.5389384]
[1724549665904,6.3219,158.18,158.17,0.5389384]
[1724549666116,26.3219,158.18,158.17,0.5389384]
[1724549666719,30.543061,158.24,158.17,0.5389384]
[1724549666919,6.321,158.21,158.17,0.5389384]
[1724549667092,8.66043839,158.27,158.17,0.5389384]
[1724549667287,5.94456508,158.3,158.18,16.037]
[1724549667507,6.4219,158.32,158.22,6.3202]
[1724549667687,6.4219,158.32,158.23,6.3198]
[1724549667908,6.3175,158.29,158.23,6.3198]
[1724549668593,6.3175,158.29,158.21,6.6241]
[1724549669002,20.0,158.28,158.21,6.6241]
[1724549669293,6.3196,158.24,158.18,16.037]
[1724549669494,28.66043839,158.28,158.18,16.037]
[1724549669495,6.3191,158.25,158.18,16.037]
[1724549669698,20.0,158.24,158.18,16.037]
[1724549669908,6.32,158.23,158.18,16.037]
[1724549670108,6.3206,158.22,158.17,7.1630384]
[1724549670396,20.0,158.21,158.17,0.5389384]
[1724549670717,20.0,158.24,158.17,0.5389384]
[1724549670718,6.3204,158.22,158.17,0.5389384]
[1724549671095,20.0,158.21,158.17,0.5389384]
[1724549671698,20.0,158.23,158.17,0.5389384]
[1724549672121,20.0,158.25,158.19,6.3211]
[1724549672299,20.0,158.26,158.19,6.3211]
[1724549672691,20.0,158.26,158.17,0.5389384]
[1724549673017,12.86154256,158.27,158.17,0.5389384]
[1724549673260,6.54294256,158.27,158.17,0.5389384]
[1724549674212,20.0,158.26,158.17,0.5389384]
[1724549675718,20.0,158.26,158.17,1.80300404]
[1724549675917,20.0,158.26,158.17,0.5389384]
[1724549676793,26.319,158.26,158.17,0.5389384]
[1724549677203,20.0,158.26,158.17,0.5389384]
[1724549677833,45.62539939,158.32,158.17,0.5389384]
[1724549678009,6.3183,158.27,158.17,0.5389384]
[1724549678400,6.53588871,158.29,158.17,0.5389384]
[1724549679019,37.07894971,158.29,158.17,0.5389384]
[1724549679330,6.3191,158.26,158.17,0.5389384]
[1724549679623,26.3182,158.28,158.17,0.5389384]
[1724549680124,6.3185,158.27,158.17,0.5389384]
[1724549680321,20.0,158.26,158.17,0.5389384]
[1724549680532,20.0,158.28,158.17,0.5389384]
[1724549681943,20.0,158.28,158.18,30.543061]
[1724549682247,20.0,158.39,158.18,30.543061]
[1724549682248,6.3167,158.31,158.2,15.0837]
[1724549682402,26.3171,158.3,158.2,15.0837]
[1724549682610,6.54236773,158.33,158.21,30.543061]
[1724549683631,6.3168,158.31,158.21,30.543061]
[1724549683835,6.54236773,158.33,158.21,30.543061]
[1724549684429,6.3167,158.31,158.21,30.543061]
[1724549684845,6.54236773,158.33,158.2,15.0837]
[1724549684846,30.543061,158.32,158.2,15.0837]
[1724549685024,30.543061,158.29,158.2,15.0837]
[1724549685218,20.0,158.28,158.2,15.0837]
[1724549685745,6.3186,158.27,158.2,15.0837]
[1724549685926,95.543061,158.26,158.17,0.5389384]
[1724549686130,6.3206,158.22,158.17,0.5389384]
[1724549686522,75.543061,158.26,158.17,0.5389384]
[1724549686523,6.3195,158.24,158.17,0.5389384]
[1724549686720,20.0,158.23,158.17,0.5389384]
[1724549686931,37.096161,158.29,158.17,0.5389384]
[1724549687129,20.0,158.28,158.17,0.5389384]
[1724549687739,36.48762608,158.32,158.18,30.543061]
[1724549687740,6.3175,158.29,158.18,30.543061]
[1724549687923,6.3171,158.31,158.18,30.543061]
[1724549688132,6.3173,158.3,158.18,30.543061]
[1724549688451,6.3179,158.29,158.18,30.543061]
[1724549689146,30.543061,158.32,158.17,0.5389384]
[1724549689448,65.0,158.31,158.17,0.5389384]
[1724549689649,6.3178,158.29,158.17,0.5389384]
[1724549689855,26.318,158.28,158.17,0.5389384]
[1724549690155,15.7929,158.3,158.17,0.5389384]
[1724549690331,6.3187,158.26,158.17,0.5389384]
[1724549691549,20.0,158.27,158.17,0.5389384]
[1724549691856,6.54236773,158.33,158.18,30.543061]
[1724549692027,6.54236773,158.33,158.21,30.543061]
[1724549692224,6.54236773,158.33,158.25,21.4661]
[1724549692436,30.543061,158.38,158.25,21.4661]
[1724549692632,38.1182,158.41,158.25,21.4661]
[1724549692633,6.3147,158.36,158.25,21.4661]
[1724549693030,6.3143,158.38,158.26,2.75275602]
[1724549693743,6.3149,158.36,158.26,2.75275602]
[1724549693952,6.3149,158.36,158.25,21.4661]
[1724549694548,6.3151,158.35,158.25,21.4661]
[1724549695947,20.0,158.34,158.25,21.4661]
[1724549696539,26.3143,158.37,158.25,21.4661]
[1724549696738,26.3143,158.37,158.27,30.543061]
[1724549696946,20.0,158.37,158.27,30.543061]
[1724549697139,26.3143,158.37,158.27,30.543061]
[1724549698857,20.0,158.37,158.25,21.4661]
[1724549699147,6.3163,158.32,158.25,21.4661]
[1724549699349,20.0,158.31,158.25,21.4661]
[1724549699929,20.0,158.32,158.25,21.4661]
[1724549700335,15.7824,158.41,158.25,21.4661]
[1724549701545,60.7849,158.38,158.25,21.4661]
[1724549702038,20.0,158.37,158.25,21.4661]
[1724549702536,6.3155,158.35,158.25,21.4661]
[1724549702758,20.0,158.34,158.25,21.4661]
[1724549704570,21.72606508,158.42,158.27,30.543061]
[1724549704856,6.3139,158.38,158.27,30.543061]
[1724549705239,6.3139,158.38,158.28,1.263179]
[1724549705563,6.3135,158.39,158.27,30.543061]
[1724549706355,6.3131,158.4,158.28,21.8709]
[1724549706962,6.3135,158.39,158.28,21.8709]
[1724549707668,6.55440252,158.41,158.3,30.543061]
[1724549707848,15.7779,158.45,158.3,30.543061]
[1724549708040,6.3131,158.4,158.28,21.8709]
[1724549709058,20.0,158.39,158.28,21.8709]
[1724549709665,20.0,158.4,158.3,30.543061]
[1724549709968,6.55763602,158.43,158.3,30.543061]
[1724549710182,6.3115,158.44,158.33,30.543061]
[1724549710669,6.3123,158.42,158.32,6.2467]
[1724549711047,6.3119,158.43,158.32,6.2467]
[1724549711250,6.3115,158.44,158.33,30.543061]
[1724549711435,37.09897537,158.46,158.33,30.543061]
[1724549711436,6.3112,158.45,158.33,30.543061]
[1724549711641,6.3112,158.45,158.34,1.26258196]
[1724549712059,6.3112,158.45,158.33,30.543061]
[1724549712577,30.543061,158.43,158.32,6.2467]
[1724549712758,30.543061,158.4,158.32,6.2467]
[1724549713062,6.3142,158.38,158.32,6.2467]
[1724549713475,20.0,158.39,158.32,6.2467]
[1724549713641,20.0,158.4,158.32,6.2467]
[1724549713845,12.50047945,158.46,158.33,31.80586083]
[1724549714150,12.86671437,158.46,158.34,15.3635]
[1724549714736,6.3108,158.46,158.34,15.3635]
[1724549715147,6.3103,158.47,158.34,15.3635]
[1724549715347,6.3103,158.47,158.36,30.543061]
[1724549715563,6.3099,158.48,158.37,6.5401]
[1724549715772,6.53943509,158.49,158.37,6.5401]
[1724549715948,6.3111,158.45,158.37,6.5401]
[1724549716642,6.3129,158.41,158.37,6.5401]
[1724549716867,30.543061,158.47,158.37,6.5401]
[1724549716868,6.3123,158.42,158.37,6.5401]
[1724549717069,50.543061,158.44,158.34,15.3635]
[1724549717341,6.3143,158.37,158.34,15.3635]
[1724549717674,6.3155,158.34,158.25,21.9036]
[1724549717962,30.543061,158.38,158.25,21.9036]
[1724549718167,20.0,158.37,158.25,21.9036]
[1724549719245,26.3146,158.37,158.25,21.9036]
[1724549719860,20.0,158.37,158.27,30.543061]
[1724549720071,26.3132,158.4,158.28,15.3635]
[1724549720242,20.0,158.4,158.29,6.5401]
[1724549720440,20.0,158.43,158.29,6.5401]
[1724549720639,46.322661,158.44,158.29,6.5401]
[1724549721041,6.3136,158.39,158.29,6.5401]
[1724549721543,46.324861,158.41,158.29,6.5401]
[1724549721760,6.3157,158.34,158.29,6.5401]
[1724549722381,30.543061,158.35,158.28,15.3635]
[1724549722554,6.3167,158.32,158.28,15.3635]
[1724549724869,6.3182,158.28,158.18,15.3635]
[1724549725058,30.543061,158.3,158.18,15.3635]
[1724549725059,6.3175,158.29,158.18,15.3635]
[1724549725262,20.0,158.28,158.18,15.3635]
[1724549726256,6.54296349,158.31,158.19,30.543061]
[1724549726467,6.3165,158.32,158.19,30.543061]
[1724549726681,20.0,158.31,158.2,21.9036]
[1724549726850,26.3168,158.31,158.2,21.9036]
[1724549727050,6.3168,158.31,158.2,21.9036]
[1724549727359,6.3162,158.33,158.2,21.9036]
[1724549727682,6.3162,158.33,158.22,30.543061]
[1724549727879,6.3164,158.32,158.22,30.543061]
[1724549728080,6.3167,158.31,158.2,21.9036]
[1724549729280,6.3161,158.33,158.2,21.9036]
[1724549729453,20.0,158.32,158.2,21.9036]
[1724549730261,20.0,158.34,158.2,21.9036]
[1724549730982,6.3197,158.24,158.17,0.5389384]
[1724549731288,20.0,158.23,158.17,0.5389384]
[1724549731589,6.3203,158.22,158.17,0.5389384]
[1724549731975,20.0,158.21,158.17,0.5389384]
[1724549732180,6.3216,158.19,158.17,0.5389384]
[1724549732565,6.3209,158.21,158.17,0.5389384]
[1724549732781,20.0,158.2,158.17,0.5389384]
[1724549733097,26.3211,158.2,158.17,0.5389384]
[1724549736898,25.8211,158.2,158.17,0.5389384]
[1724549738576,6.3206,158.22,158.17,0.5389384]
[1724549740192,20.0,158.21,158.17,0.5389384]
[1724549740978,20.0,158.22,158.17,0.5389384]
[1724549741379,6.54370991,158.23,158.17,0.5389384]
[1724549741681,6.3191,158.25,158.18,15.3068]
[1724549744285,26.3195,158.24,158.18,15.3068]
[1724549745688,62.727961,158.3,158.18,15.3068]
[1724549746003,6.3189,158.26,158.18,15.3068]
[1724549746204,6.6098,158.32,158.18,15.3068]
[1724549746379,30.543061,158.3,158.18,15.3068]
[1724549746810,6.3187,158.26,158.18,15.3068]
[1724549747403,30.543061,158.3,158.18,15.3068]
[1724549747600,6.3191,158.26,158.18,15.3068]
[1724549748107,37.05560954,158.3,158.18,15.3068]
[1724549748289,6.3186,158.27,158.18,15.3068]
[1724549749013,6.3189,158.26,158.18,15.3068]
[1724549749515,6.3191,158.25,158.18,15.3068]
[1724549749693,6.3195,158.24,158.18,15.3068]
[1724549750618,6.3199,158.23,158.18,15.3068]
[1724549750787,6.3208,158.21,158.18,15.3068]
[1724549751126,6.3207,158.21,158.17,0.5389384]
[1724549751482,6.3203,158.23,158.17,0.5389384]
[1724549751909,6.3205,158.22,158.17,0.5389384]